bitfinex/quotes_SOLUSD_20251119
["timestamp","ask_amount","ask_price","bid_price","bid_amount"]
[1763552131102,0.2,139.33,139.32,28.62978769]
[1763552131305,0.2,139.33,139.32,30.74525611]
[1763552139105,0.2,139.33,139.32,28.62978769]
[1763552139293,0.2,139.33,139.32,30.74525611]
[1763552139805,0.88,139.33,139.32,2.11546842]
[1763552139998,0.88,139.33,139.31,4.99202805]
[1763552140203,0.88,139.33,139.32,1.7]
[1763552143005,0.2,139.33,139.32,4.52546842]
[1763552143208,0.2,139.33,139.32,3.81546842]
[1763552152598,0.2,139.33,139.32,4.52546842]
[1763552154307,0.2,139.33,139.32,3.81546842]
[1763552154827,0.2,139.33,139.32,4.52546842]
[1763552156621,0.2,139.33,139.32,3.81546842]
[1763552157528,3.02546842,139.33,139.28,3.81546842]
[1763552157729,3.02546842,139.33,139.28,1.7]
[1763552158028,0.71,139.32,139.29,1.7]
[1763552162344,2.82546842,139.32,139.29,1.7]
[1763552162942,0.71,139.31,139.29,1.7]
[1763552164633,2.11546842,139.3,139.26,4.52546842]
[1763552164841,0.71,139.31,139.26,4.52546842]
[1763552164842,0.71,139.31,139.26,1.7]
[1763552165038,18.32096,139.33,139.26,1.7]
[1763552165039,2.82546842,139.3,139.26,1.7]
[1763552165449,0.71,139.29,139.26,1.7]
[1763552165622,0.71,139.29,139.26,4.52546842]
[1763552165817,0.71,139.31,139.27,2.82546842]
[1763552166020,0.71,139.31,139.28,0.71]
[1763552166444,0.71,139.31,139.28,2.82546842]
[1763552166814,0.71,139.31,139.28,4.01633403]
[1763552167035,0.71,139.31,139.28,5.71633403]
[1763552167443,18.32096,139.33,139.28,5.71633403]
[1763552167444,0.91,139.33,139.29,4.01633403]
[1763552167746,0.71,139.32,139.29,4.01633403]
[1763552172144,4.01633403,139.32,139.28,1.7]
[1763552172337,4.01633403,139.32,139.27,3.30633403]
[1763552172648,4.01633403,139.31,139.26,4.01633403]
[1763552172941,4.01633403,139.31,139.26,5.71633403]
[1763552173149,0.71,139.3,139.26,5.71633403]
[1763552173537,0.71,139.3,139.26,4.01633403]
[1763552173828,0.71,139.3,139.26,5.71633403]
[1763552174032,4.01633403,139.3,139.26,1.7]
[1763552174231,3.30633403,139.29,139.26,1.7]
[1763552174529,3.30633403,139.29,139.23,3.30633403]
[1763552174530,3.30633403,139.27,139.23,3.30633403]
[1763552174729,3.30633403,139.27,139.22,4.01633403]
[1763552174939,4.01633403,139.26,139.21,0.71]
[1763552175125,4.01633403,139.26,139.22,1.7]
[1763552175326,0.71,139.25,139.22,5.00633403]
[1763552175526,0.71,139.25,139.22,5.71633403]
[1763552176031,0.71,139.25,139.23,0.71]
[1763552178750,0.71,139.25,139.22,5.00633403]
[1763552178951,0.71,139.25,139.22,1.7]
[1763552179149,0.71,139.25,139.22,2.41]
[1763552179556,0.71,139.25,139.22,1.7]
[1763552179755,0.71,139.25,139.22,2.41]
[1763552179941,0.71,139.25,139.22,20.53096]
[1763552180934,3.30633403,139.26,139.23,0.71]
[1763552181133,0.67,139.26,139.23,0.71]
[1763552181332,3.97633403,139.26,139.23,0.71]
[1763552181751,0.67,139.26,139.23,0.71]
[1763552182052,0.67,139.25,139.23,0.71]
[1763552182442,3.97633403,139.26,139.23,0.71]
[1763552183059,0.67,139.25,139.22,2.41]
[1763552184159,3.97633403,139.25,139.22,1.7]
[1763552184543,0.65,139.24,139.22,1.7]
[1763552185138,3.30633403,139.25,139.22,2.37]
[1763552185467,0.65,139.25,139.22,2.37]
[1763552185766,27.90978769,139.32,139.22,2.37]
[1763552185767,3.95633403,139.28,139.23,3.97633403]
[1763552186146,3.95633403,139.27,139.23,0.67]
[1763552186547,0.65,139.26,139.23,0.67]
[1763552187335,3.30633403,139.27,139.23,0.67]
[1763552187561,0.65,139.27,139.23,3.97633403]
[1763552188054,0.65,139.27,139.24,0.67]
[1763552188257,0.65,139.27,139.15,18.0]
[1763552188258,3.30633403,139.25,139.15,18.0]
[1763552188433,3.30633403,139.16,139.15,18.0]
[1763552188636,3.75450449,139.19,139.15,18.0]
[1763552188859,0.65,139.18,139.15,20.37]
[1763552189162,3.95633403,139.18,139.15,19.7]
[1763552189375,3.95633403,139.17,139.15,19.7]
[1763552190343,3.75450449,139.19,139.15,18.0]
[1763552190344,3.95633403,139.16,139.15,18.0]
[1763552190740,3.75450449,139.19,139.15,18.0]
[1763552190741,3.30633403,139.17,139.15,18.0]
[1763552191062,3.95633403,139.17,139.15,18.0]
[1763552191241,3.30633403,139.16,139.15,18.0]
[1763552192470,4.40450449,139.19,139.15,18.0]
[1763552192764,3.30633403,139.17,139.16,1.7]
[1763552193140,3.95633403,139.17,139.16,1.7]
[1763552193340,3.30633403,139.17,139.16,1.7]
[1763552193536,3.95633403,139.17,139.15,18.0]
[1763552193763,3.95633403,139.16,139.15,18.0]
[1763552202994,3.95633403,139.16,139.11,0.1]
[1763552202995,27.90978769,139.12,139.11,0.1]
[1763552203180,18.67096,139.15,139.11,0.1]
[1763552203481,3.30633403,139.13,139.11,1.8]
[1763552204263,0.55,139.14,139.11,1.8]
[1763552204264,3.30633403,139.12,139.11,1.8]
[1763552205578,3.30633403,139.12,139.11,0.1]
[1763552205781,3.85633403,139.12,139.11,0.1]
[1763552210802,25.28362806,139.12,139.11,0.1]
[1763552210973,35.07245575,139.12,139.05,0.82]
[1763552211289,3.30633403,139.06,139.05,0.82]
[1763552212093,3.30633403,139.08,139.05,0.82]
[1763552213874,3.30633403,139.07,139.05,0.82]
[1763552214598,3.30633403,139.08,139.05,0.82]
[1763552215561,3.30633403,139.07,139.05,0.82]
[1763552221496,18.67096,139.09,139.05,0.1]
[1763552221497,3.30633403,139.06,139.05,0.1]
[1763552228909,2.12464869,139.06,139.05,0.1]
[1763552229109,2.67464869,139.06,139.05,0.1]
[1763552230124,2.12464869,139.06,139.05,0.1]
[1763552231200,2.67464869,139.06,139.05,0.1]
[1763552232194,18.12096,139.04,139.01,0.1]
[1763552232411,2.12464869,139.02,139.01,0.1]
[1763552232818,2.67464869,139.02,139.01,0.1]
[1763552233438,20.79560869,139.02,139.01,0.1]
[1763552234310,2.67464869,139.02,139.01,0.1]
[1763552235301,2.12464869,139.02,138.99,0.72]
[1763552235499,2.12464869,139.01,138.99,0.72]
[1763552237031,2.12464869,139.0,138.99,0.72]
[1763552237241,2.12464869,139.0,138.96,1.72]
[1763552237450,2.12464869,138.99,138.98,0.72]
[1763552238109,2.12464869,139.0,138.98,0.72]
[1763552239032,2.12464869,139.01,138.98,0.72]
[1763552239730,2.12464869,139.01,138.98,2.44]
[1763552239933,2.12464869,139.02,138.98,2.44]
[1763552240143,2.12464869,139.02,138.99,0.72]
[1763552240639,18.67096,139.05,138.99,0.72]
[1763552240945,2.12464869,139.03,138.99,0.72]
[1763552241331,2.12464869,139.03,138.97,2.12464869]
[1763552241520,2.12464869,138.99,138.96,0.72]
[1763552241721,2.12464869,138.99,138.96,2.44]
[1763552242130,2.12464869,138.99,138.97,0.72]
[1763552243143,2.12464869,138.99,138.94,0.72]
[1763552243144,2.12464869,138.98,138.94,0.72]
[1763552243441,2.12464869,138.96,138.95,0.72]
[1763552246346,2.12464869,138.96,138.94,0.69]
[1763552247042,2.12464869,138.97,138.94,0.69]
[1763552248558,2.12464869,138.96,138.94,0.69]
[1763552249647,2.12464869,138.95,138.92,2.41]
[1763552249852,2.12464869,138.95,138.93,0.69]
[1763552252958,2.12464869,138.95,138.93,2.41]
[1763552256151,18.12096,138.97,138.93,2.41]
[1763552256360,2.12464869,138.95,138.93,2.41]
[1763552256851,2.12464869,138.95,138.93,0.69]
[1763552258131,2.12464869,138.95,138.92,1.72]
[1763552258441,2.12464869,138.94,138.92,1.72]
[1763552258645,2.12464869,138.94,138.92,2.41]
[1763552258860,2.12464869,138.93,138.91,1.7]
[1763552259355,2.12464869,138.93,138.91,2.39]
[1763552259734,0.55,138.97,138.92,0.69]
[1763552259936,2.12464869,138.95,138.92,0.69]
[1763552262167,18.12096,138.98,138.92,0.69]
[1763552262168,2.12464869,138.96,138.92,0.69]
[1763552262738,2.12464869,138.95,138.92,0.69]
[1763552268372,2.12464869,138.94,138.92,0.69]
[1763552270978,2.12464869,138.95,138.92,0.69]
[1763552273268,0.55,138.99,138.92,0.69]
[1763552273465,2.12464869,138.96,138.92,0.69]
[1763552273666,2.12464869,138.96,138.93,1.7]
[1763552273864,18.12096,138.97,138.93,1.7]
[1763552274181,2.12464869,138.97,138.94,0.72]
[1763552276954,20.24560869,138.97,138.94,0.72]
[1763552277269,2.12464869,138.97,138.94,0.72]
[1763552279167,12.67410197,139.02,138.94,0.72]
[1763552279366,2.12464869,138.99,138.94,0.72]
[1763552279575,2.12464869,138.99,138.95,1.7]
[1763552279880,2.12464869,138.98,138.95,1.7]
[1763552280076,2.12464869,138.98,138.96,0.72]
[1763552280654,2.12464869,138.98,138.95,1.7]
[1763552280977,2.12464869,138.96,138.93,0.72]
[1763552281184,2.12464869,138.95,138.93,0.72]
[1763552281878,2.12464869,138.97,138.93,0.72]
[1763552283393,2.12464869,138.96,138.93,0.72]
[1763552284667,18.12096,138.98,138.93,0.72]
[1763552284869,2.12464869,138.97,138.93,0.72]
[1763552287288,2.12464869,138.96,138.93,0.72]
[1763552288185,2.12464869,138.97,138.93,0.72]
[1763552288782,3.32329704,138.97,138.93,0.72]
[1763552290669,3.32329704,138.96,138.93,0.72]
[1763552290874,3.32329704,138.96,138.94,1.7]
[1763552291288,3.32329704,138.96,138.94,2.42]
[1763552293293,3.32329704,138.96,138.94,1.7]
[1763552293467,3.32329704,138.96,138.95,0.72]
[1763552295811,0.55,138.98,138.95,0.72]
[1763552295812,21.44425704,138.97,138.95,0.72]
[1763552295972,3.32329704,138.97,138.95,0.72]
[1763552296599,3.32329704,138.97,138.94,1.7]
[1763552296798,3.32329704,138.97,138.94,2.42]
[1763552296993,3.32329704,138.97,138.94,1.7]
[1763552297200,3.32329704,138.97,138.95,0.72]
[1763552298101,3.32329704,138.97,138.94,2.42]
[1763552298297,3.32329704,138.97,138.94,1.7]
[1763552298594,3.32329704,138.97,138.95,0.72]
[1763552299172,3.87329704,138.97,138.94,2.42]
[1763552299496,3.32329704,138.97,138.94,2.42]
[1763552299696,3.32329704,138.97,138.95,0.69]
[1763552300299,3.32329704,138.97,138.91,3.32329704]
[1763552300300,3.32329704,138.97,138.92,1.7]
[1763552300470,3.32329704,138.97,138.94,0.69]
[1763552301087,3.87329704,138.96,138.92,2.39]
[1763552301289,3.87329704,138.96,138.92,1.7]
[1763552301490,3.32329704,138.96,138.93,0.69]
[1763552307710,3.32329704,138.96,138.93,2.39]
[1763552308997,3.32329704,138.96,138.94,0.66]
[1763552309203,3.87329704,138.96,138.93,2.36]
[1763552309994,3.87329704,138.96,138.93,0.66]
[1763552310695,3.32329704,138.96,138.93,0.66]
[1763552313784,3.32329704,138.96,138.93,2.36]
[1763552314192,3.32329704,138.96,138.94,0.66]
[1763552314686,3.87329704,138.97,138.94,0.66]
[1763552315409,0.55,138.96,138.93,2.36]
[1763552315908,3.32329704,138.97,138.93,1.7]
[1763552316216,3.32329704,138.96,138.94,0.66]
[1763552317290,3.32329704,138.97,138.94,0.66]
[1763552319114,0.55,138.98,138.94,0.66]
[1763552319296,3.32329704,138.98,138.94,0.66]
[1763552319615,18.67096,139.0,138.95,5.25922792]
[1763552319616,18.12096,138.99,138.95,5.25922792]
[1763552319791,21.44425704,139.0,138.95,5.25922792]
[1763552320118,21.44425704,139.0,138.96,0.66]
[1763552320629,18.12096,139.02,138.96,3.98329704]
[1763552320801,3.32329704,139.01,138.96,3.98329704]
[1763552321011,18.12096,139.02,138.97,7.61922792]
[1763552321202,3.32329704,139.01,138.98,0.66]
[1763552322092,18.67096,139.05,138.98,3.98329704]
[1763552322317,3.32329704,139.04,138.99,3.32329704]
[1763552322507,3.32329704,139.04,138.99,10.94252496]
[1763552322705,3.32329704,139.04,139.0,0.66]
[1763552323720,3.32329704,139.05,139.01,1.7]
[1763552323914,21.44425704,139.06,139.01,15.305822]
[1763552324222,3.32329704,139.05,139.02,0.66]
[1763552325518,3.32329704,139.04,139.02,0.66]
[1763552326689,3.32329704,139.05,139.02,0.66]
[1763552327111,28.45978769,139.08,139.02,0.66]
[1763552327324,3.32329704,139.07,139.02,0.66]
[1763552327724,3.32329704,139.06,139.02,0.66]
[1763552328310,21.44425704,139.08,139.03,3.32329704]
[1763552328823,3.32329704,139.08,139.04,0.66]
[1763552329017,3.32329704,139.08,139.05,1.7]
[1763552329211,11.98252496,139.12,139.05,5.02329704]
[1763552329415,0.55,139.13,139.05,5.02329704]
[1763552329416,0.55,139.13,139.06,3.98329704]
[1763552329729,3.32329704,139.11,139.07,0.68]
[1763552330328,3.32329704,139.12,139.07,0.68]
[1763552330528,3.32329704,139.11,139.07,0.68]
[1763552331036,3.32329704,139.11,139.08,3.32329704]
[1763552331419,3.32329704,139.11,139.08,4.00329704]
[1763552331617,0.55,139.12,139.09,0.68]
[1763552331811,3.32329704,139.12,139.09,0.68]
[1763552332008,21.44425704,139.12,139.09,0.68]
[1763552332430,18.12096,139.12,139.09,0.68]
[1763552332608,18.12096,139.12,139.09,2.38]
[1763552333016,18.12096,139.12,139.1,0.68]
[1763552333212,3.32329704,139.14,139.1,0.68]
[1763552334136,3.32329704,139.14,139.11,5.02329704]
[1763552334429,0.2,139.15,139.12,0.68]
[1763552334604,3.52329704,139.15,139.12,0.68]
[1763552335006,0.2,139.15,139.12,0.68]
[1763552336618,0.2,139.15,139.13,3.32329704]
[1763552337131,0.2,139.15,139.14,0.68]
[1763552337512,4.07329704,139.15,139.11,5.70329704]
[1763552337827,4.07329704,139.15,139.09,1.7]
[1763552337828,3.32329704,139.12,139.09,1.7]
[1763552338011,3.32329704,139.12,139.04,9.78882769]
[1763552338012,3.32329704,139.12,139.08,18.12096]
[1763552338212,3.32329704,139.11,139.08,18.12096]
[1763552338518,3.32329704,139.11,139.07,2.38]
[1763552338714,3.32329704,139.1,139.07,2.38]
[1763552338950,0.55,139.12,139.07,0.68]
[1763552339246,0.55,139.12,139.08,0.68]
[1763552339542,3.32329704,139.1,139.08,0.68]
[1763552339728,3.32329704,139.12,139.08,0.68]
[1763552340037,18.67096,139.14,139.08,0.68]
[1763552340228,3.32329704,139.12,139.08,0.68]
[1763552340533,3.32329704,139.13,139.08,5.70329704]
[1763552340724,3.32329704,139.13,139.09,1.7]
[1763552340936,3.32329704,139.13,139.1,0.68]
[1763552341746,0.2,139.15,139.1,4.00329704]
[1763552341918,0.2,139.15,139.11,3.32329704]
[1763552342117,3.52329704,139.15,139.11,4.00329704]
[1763552342447,0.2,139.15,139.12,0.68]
[1763552342617,3.52329704,139.15,139.12,0.68]
[1763552343713,0.2,139.15,139.12,0.68]
[1763552344042,0.2,139.15,139.13,1.7]
[1763552344544,0.2,139.15,139.13,2.38]
[1763552344925,3.87329704,139.14,139.11,1.7]
[1763552345132,3.32329704,139.14,139.11,2.38]
[1763552345448,3.32329704,139.13,139.11,2.38]
[1763552345827,3.32329704,139.12,139.1,18.13542177]
[1763552346136,3.32329704,139.12,139.1,1.7]
[1763552346540,3.32329704,139.12,139.1,2.38]
[1763552347033,3.32329704,139.13,139.1,2.38]
[1763552347738,0.55,139.12,139.09,18.12096]
[1763552348040,3.32329704,139.1,139.03,0.68]
[1763552348225,3.32329704,139.06,139.03,2.38]
[1763552348424,3.32329704,139.07,139.03,2.38]
[1763552348648,3.32329704,139.08,139.04,0.68]
[1763552350054,3.32329704,139.07,139.04,0.68]
[1763552350934,2.12383236,139.07,139.04,0.68]
[1763552354054,2.12383236,139.06,139.04,0.68]
[1763552354353,2.12383236,139.08,139.05,2.38]
[1763552354847,2.12383236,139.07,139.06,1.7]
[1763552355057,2.67383236,139.07,139.06,1.7]
[1763552355270,2.12383236,139.07,139.06,1.7]
[1763552355732,18.12096,139.09,139.06,2.38]
[1763552355943,2.12383236,139.08,139.06,2.38]
[1763552356626,2.12383236,139.08,139.06,1.7]
[1763552357126,2.12383236,139.08,139.06,2.38]
[1763552357322,2.12383236,139.08,139.06,1.7]
[1763552358145,2.12383236,139.08,139.05,0.68]
[1763552358334,2.12383236,139.08,139.06,1.7]
[1763552358547,2.12383236,139.07,139.06,1.7]
[1763552358834,2.12383236,139.08,139.06,2.38]
[1763552359051,2.12383236,139.08,139.06,1.7]
[1763552359230,2.12383236,139.07,139.06,1.7]
[1763552359552,18.12096,139.08,139.06,2.4]
[1763552359553,20.24479236,139.08,139.06,2.4]
[1763552360728,20.24479236,139.08,139.06,0.7]
[1763552360953,20.24479236,139.08,139.06,2.4]
[1763552361952,20.24479236,139.08,139.06,1.7]
[1763552362156,20.24479236,139.08,139.05,0.7]
[1763552362346,0.55,139.07,139.06,1.7]
[1763552362546,2.12383236,139.07,139.06,1.7]
[1763552364945,2.67383236,139.07,139.06,1.7]
[1763552366766,2.12383236,139.07,139.04,2.42]
[1763552367452,2.12383236,139.07,139.05,0.72]
[1763552368747,18.67096,139.1,139.05,0.72]
[1763552368748,18.12096,139.1,139.05,0.72]
[1763552368953,20.24479236,139.1,139.05,2.84383236]
[1763552369345,20.24479236,139.1,139.06,0.72]
[1763552371141,2.12383236,139.1,139.06,0.72]
[1763552372762,18.32096,139.15,139.06,2.84383236]
[1763552373072,2.12383236,139.12,139.07,2.12383236]
[1763552373269,2.12383236,139.12,139.08,1.7]
[1763552373578,2.12383236,139.12,139.08,2.42]
[1763552373779,2.12383236,139.12,139.09,0.72]
[1763552374149,0.55,139.11,139.08,1.7]
[1763552374349,2.12383236,139.1,139.07,0.72]
[1763552374556,2.12383236,139.1,139.07,2.42]
[1763552375866,0.55,139.11,139.07,2.42]
[1763552375867,2.12383236,139.11,139.07,1.7]
[1763552376066,2.12383236,139.11,139.07,2.42]
[1763552376067,2.12383236,139.09,139.07,2.42]
[1763552376272,2.12383236,139.1,139.07,2.42]
[1763552377477,2.12383236,139.12,139.08,0.72]
[1763552378078,20.79479236,139.13,139.08,2.84383236]
[1763552378264,20.79479236,139.13,139.09,0.72]
[1763552379182,2.12383236,139.12,139.09,0.72]
[1763552381785,2.12383236,139.1,139.09,0.72]
[1763552381981,0.2,139.15,139.09,0.72]
[1763552382188,2.12383236,139.14,139.09,2.84383236]
[1763552382658,2.12383236,139.14,139.1,0.66]
[1763552385983,0.2,139.15,139.1,2.78383236]
[1763552385984,2.32383236,139.15,139.1,2.78383236]
[1763552386164,0.2,139.15,139.11,2.78383236]
[1763552386366,0.2,139.15,139.12,1.7]
[1763552386568,0.2,139.15,139.12,2.36]
[1763552386796,0.2,139.15,139.13,0.66]
[1763552387362,2.32383236,139.15,139.13,0.66]
[1763552389675,2.32383236,139.15,139.13,2.36]
[1763552390290,2.32383236,139.15,139.13,1.7]
[1763552390468,2.32383236,139.15,139.14,0.66]
[1763552390977,2.32383236,139.15,139.13,2.36]
[1763552391178,2.12383236,139.14,139.11,0.66]
[1763552391379,2.12383236,139.14,139.13,1.7]
[1763552391695,0.2,139.15,139.13,1.7]
[1763552391898,2.32383236,139.15,139.13,2.36]
[1763552393598,2.32383236,139.15,139.09,2.88111787]
[1763552393599,2.67383236,139.14,139.09,0.66]
[1763552393796,2.12383236,139.12,139.1,2.36]
[1763552396170,2.12383236,139.12,139.1,0.66]
[1763552396377,2.12383236,139.12,139.1,2.36]
[1763552399478,0.2,139.15,139.11,0.66]
[1763552399677,2.32383236,139.15,139.11,0.66]
[1763552400088,2.12383236,139.14,139.11,0.66]
[1763552400285,0.2,139.15,139.12,1.7]
[1763552400598,2.32383236,139.15,139.12,1.7]
[1763552400794,2.32383236,139.15,139.12,2.36]
[1763552401382,0.2,139.15,139.13,0.66]
[1763552401707,2.32383236,139.15,139.13,0.66]
[1763552404537,0.2,139.15,139.13,0.66]
[1763552406716,0.2,139.15,139.13,2.78383236]
[1763552407031,0.2,139.15,139.14,2.78383236]
[1763552410852,0.2,139.15,139.14,3.9727253]
[1763552412539,0.2,139.15,139.14,13.76155299]
[1763552412941,0.2,139.15,139.14,16.64163363]
[1763552414419,0.2,139.15,139.14,1.7]
[1763552414658,4.0627253,139.15,139.14,1.7]
[1763552415143,4.0627253,139.15,139.11,2.36]
[1763552415546,3.5127253,139.15,139.12,0.66]
[1763552416852,0.2,139.15,139.12,0.66]
[1763552418360,0.2,139.15,139.13,3.3127253]
[1763552418731,0.2,139.15,139.14,0.66]
[1763552419231,0.2,139.15,139.14,3.9727253]
[1763552419434,0.2,139.15,139.14,0.66]
[1763552419741,0.2,139.15,139.12,13.77155299]
[1763552419964,0.2,139.15,139.13,0.67]
[1763552421760,0.2,139.15,139.13,2.37]
[1763552423365,0.2,139.15,139.14,0.67]
[1763552430462,0.2,139.15,139.14,3.9827253]
[1763552430847,0.2,139.15,139.14,13.77155299]
[1763552436069,0.2,139.15,139.14,42.94224418]
[1763552436646,0.2,139.15,139.14,65.34281085]
[1763552437246,0.2,139.15,139.14,36.47393887]
[1763552437465,0.2,139.15,139.14,37.45523829]
[1763552440077,0.2,139.15,139.14,35.75523829]
[1763552440252,0.2,139.15,139.14,37.45523829]
[1763552440961,18.12096,139.27,139.16,18.12096]
[1763552441276,3.3127253,139.22,139.17,1.7]
[1763552442562,3.3127253,139.22,139.17,19.82096]
[1763552442970,3.3127253,139.22,139.17,23.7936853]
[1763552443556,3.3127253,139.22,139.17,23.1336853]
[1763552443880,3.3127253,139.21,139.17,19.82096]
[1763552444178,3.3127253,139.21,139.16,3.3127253]
[1763552444383,3.3127253,139.2,139.17,1.7]
[1763552445458,3.3127253,139.19,139.14,3.3127253]
[1763552445673,3.3127253,139.19,139.15,1.7]
[1763552449884,3.3127253,139.17,139.12,13.10155299]
[1763552450091,3.3127253,139.16,139.13,1.7]
[1763552451273,3.3127253,139.15,139.13,1.7]
[1763552451590,3.3127253,139.16,139.13,1.7]
[1763552452875,3.3127253,139.16,139.11,3.3127253]
[1763552453073,3.3127253,139.16,139.12,5.0127253]
[1763552453280,3.3127253,139.16,139.12,5.7227253]
[1763552455378,21.4336853,139.2,139.12,5.7227253]
[1763552455574,3.3127253,139.16,139.12,5.7227253]
[1763552457088,3.3127253,139.17,139.13,0.71]
[1763552457290,18.12096,139.21,139.13,4.0227253]
[1763552457291,3.3127253,139.18,139.13,4.0227253]
[1763552458985,3.3127253,139.18,139.14,0.71]
[1763552459692,3.3127253,139.2,139.15,5.0127253]
[1763552459994,3.3127253,139.19,139.15,1.7]
[1763552460474,3.3127253,139.19,139.15,2.41]
[1763552461387,3.3127253,139.18,139.15,1.7]
[1763552461692,3.3127253,139.17,139.14,1.7]
[1763552461897,3.3127253,139.18,139.14,1.7]
[1763552462284,3.3127253,139.18,139.14,2.41]
[1763552462969,18.12096,139.21,139.15,0.71]
[1763552463172,3.3127253,139.18,139.15,0.71]
[1763552463595,3.3127253,139.19,139.15,0.71]
[1763552464183,3.3127253,139.2,139.15,4.0227253]
[1763552464694,3.3127253,139.19,139.16,0.71]
[1763552466018,3.3127253,139.18,139.14,1.7]
[1763552466298,3.3127253,139.18,139.14,2.41]
[1763552466476,3.3127253,139.19,139.15,0.71]
[1763552467187,3.3127253,139.18,139.15,0.71]
[1763552470781,2.12038381,139.18,139.15,0.71]
[1763552472806,2.12038381,139.19,139.15,0.71]
[1763552474307,2.12038381,139.18,139.15,0.71]
[1763552476713,2.12038381,139.19,139.15,0.71]
[1763552491446,2.12038381,139.19,139.15,3.59049544]
[1763552491957,2.12038381,139.19,139.16,0.69]
[1763552495053,2.12038381,139.2,139.16,0.69]
[1763552495522,2.12038381,139.2,139.16,3.57049544]
[1763552495717,2.12038381,139.2,139.17,0.69]
[1763552496023,2.12038381,139.19,139.17,0.69]
[1763552499646,18.12096,139.21,139.17,0.69]
[1763552499647,2.12038381,139.18,139.17,0.69]
[1763552502943,2.12038381,139.18,139.14,0.69]
[1763552503133,2.12038381,139.16,139.15,0.69]
[1763552504241,2.12038381,139.16,139.13,3.82038381]
[1763552504445,2.12038381,139.15,139.13,4.51038381]
[1763552504628,2.12038381,139.15,139.13,0.69]
[1763552504835,2.12038381,139.15,139.14,0.69]
[1763552505227,2.12038381,139.15,139.12,21.94134381]
[1763552505450,2.12038381,139.16,139.13,0.69]
[1763552506244,19.82096,139.2,139.13,0.69]
[1763552506449,2.12038381,139.17,139.13,2.81038381]
[1763552506650,2.12038381,139.17,139.13,22.63134381]
[1763552506943,1.7,139.16,139.13,19.82096]
[1763552507246,1.7,139.16,139.07,0.69]
[1763552507247,18.12096,139.1,139.07,0.69]
[1763552507450,2.12038381,139.08,139.07,0.69]
[1763552508230,2.12038381,139.08,139.05,2.39]
[1763552508456,2.12038381,139.06,139.03,0.79]
[1763552508753,2.12038381,139.05,139.03,0.79]
[1763552508938,2.12038381,139.06,139.03,0.79]
[1763552509553,2.12038381,139.04,139.03,0.1]
[1763552509958,2.12038381,139.05,139.03,0.78]
[1763552510853,18.12096,139.08,139.03,0.78]
[1763552511055,2.12038381,139.07,139.03,0.78]
[1763552511243,18.12096,139.08,139.03,0.78]
[1763552511445,2.12038381,139.08,139.03,2.90038381]
[1763552511645,2.12038381,139.08,139.04,1.7]
[1763552511851,2.12038381,139.08,139.04,2.38]
[1763552512046,2.12038381,139.08,139.05,0.68]
[1763552512248,2.12038381,139.09,139.05,0.68]
[1763552513343,2.12038381,139.08,139.05,0.68]
[1763552518067,2.12038381,139.07,139.05,0.68]
[1763552518463,2.12038381,139.06,139.05,0.68]
[1763552519887,2.12038381,139.06,139.04,1.7]
[1763552520067,2.12038381,139.06,139.04,2.38]
[1763552520251,2.12038381,139.06,139.04,1.7]
[1763552520452,2.12038381,139.06,139.05,0.68]
[1763552522585,2.88298677,139.11,139.05,0.68]
[1763552522769,2.12038381,139.08,139.05,0.68]
[1763552525167,2.12038381,139.08,139.04,1.7]